[Event "Danish Skakligaen 2024-25"]
[Site "Denmark"]
[Date "2024.11.02"]
[Round "1.2"]
[White "Klitgaard, Thomas"]
[Black "Hansen, Sune Berg"]
[Result "0-1"]
[ECO "A30"]
[WhiteElo "2183"]
[BlackElo "2511"]
[Annotator "TA"]
[PlyCount "112"]
[EventDate "2024.11.02"]
[EventType "team-tourn"]
[EventCountry "DEN"]
[SourceTitle "playchess.com"]
[Source "ChessBase"]
[SourceQuality "1"]
[TimeControl "40/5400+30:1800+30"]

{[%evp 24,112,51,38,48,51,46,28,34,25,37,18,22,15,27,31,42,14,39,7,24,0,41,31,35,34,37,-43,39,29,41,19,9,9,34,19,33,7,22,0,0,-20,0,0,0,-22,-9,-45,-56,-54,-69,-53,-43,-35,-44,-73,-17,-52,-34,-31,-28,-87,-83,-116,-60,-57,-60,-65,-47,-123,-97,-341,-327,-730,-732,-716,-721,-859,-857,-840,-846,-1004,-996,-989,-975,-1434,-843,-29996,-29997,-29998,-29999]} 1. Nf3 {[%emt 0:00:05]} c5 {[%emt 0:00:56]} 2. c4 {[%emt 0:00:13]} Nf6 {[%emt 0:02:45]} 3. Nc3 {[%emt 0:01:24]} e6 {[%emt 0:01:40]} 4. g3 {[%emt 0:01:46]} b6 {[%emt 0:00:25]} 5. Bg2 {[%emt 0:00:22]} Bb7 {[%emt 0:00:06]} 6. O-O {[%emt 0:00:24]} Be7 {[%emt 0:00:40]} 7. b3 {[%emt 0:00:10]} O-O {[%emt 0:01:36]} 8. d4 {[%emt 0:01:04]} cxd4 {[%emt 0:01:45]} 9. Qxd4 {[%emt 0:00:13]} d6 {[%emt 0:07:23]} 10. e4 {[%emt 0:14:33]} Nbd7 {[%emt 0:08:57]} 11. Rd1 {[%emt 0:05:28]} Qc8 {[%emt 0:07:20]} 12. Bb2 {[%emt 0:09:00]} a6 {[%emt 0:01:03]} 13. Rac1 {[%emt 0:00:46]} Re8 {[%emt 0:04:11]} 14. h3 {[%emt 0:06:27]} Bf8 {[%emt 0:04:16]} 15. Re1 {[%emt 0:05:34]} Qc7 {[%emt 0:03:06] White has an edge.} 16. Qd3 {[%emt 0:11:44]} Rad8 {[%emt 0:01:26]} 17. Qf1 {[%emt 0:03:10]} Qb8 {[%emt 0:01:19]} 18. Rcd1 {[%emt 0:05:05]} Qa8 {[%emt 0:02:12]} 19. Nd2 {[%emt 0:01:43]} h6 {[%emt 0:02:33]} 20. Kh2 {[%emt 0:00:23]} Qb8 {[%emt 0:02:17]} 21. f4 {[%emt 0:02:05]} Bc6 {[%emt 0:03:31]} 22. Nf3 {[%emt 0:01:13]} Qc7 {[%emt 0:08:49]} 23. Rc1 {[%emt 0:02:04][%cal Oc3d5]} Bb7 {[%emt 0:00:31]} 24. Nd4 {[%emt 0:04:44]} Nc5 {[%emt 0:03:27]} 25. Qe2 {[%emt 0:07:07]} (25. Nc2 $14) 25... Qb8 {[%emt 0:02:07]} ({Black should try} 25... e5 $15 26. Nf5 g6) 26. Rcd1 {[%emt 0:01:09]} Qa8 {[%emt 0:07:39]} 27. e5 {[%emt 0:09:48]} dxe5 {[%emt 0:03:48]} 28. fxe5 {[%emt 0:00:11] And now Bxb7 would win.} Nh7 {[%emt 0:01:00]} 29. h4 {[%emt 0:03:11]} Nd7 {[%emt 0:06:07]} 30. Bxb7 {[%emt 0:01:17]} Qxb7 {[%emt 0:00:05]} 31. Qf3 {[%emt 0:00:21]} Qc7 {[%emt 0:02:59]} 32. Qe4 {[%emt 0:02:03]} Rc8 {[%emt 0:03:16]} 33. Re2 {[%emt 0:00:45]} Bb4 {[%emt 0:01:17]} 34. Rc1 {[%emt 0:01:17]} (34. Qc6 $5) 34... Nhf8 {[%emt 0:02:50]} 35. a3 {[%emt 0:00:04]} Bxc3 {[%emt 0:00:23]} 36. Bxc3 {[%emt 0:00:06]} Ng6 {[%emt 0:00:11]} 37. Nf3 {[%emt 0:00:40]} Nc5 {[%emt 0:00:21]} 38. Qc2 {[%emt 0:00:25]} Red8 {[%emt 0:00:18]} 39. h5 {[%emt 0:00:19] [#]} Nf8 {[%emt 0:00:47]} (39... Ne7 $1 $17 40. Nd4 Nc6 41. Nxc6 Qxc6) 40. Rd1 {[%emt 0:00:50]} Rxd1 {[%emt 0:02:10]} 41. Qxd1 {[%emt 0:30:12]} Qb7 {[%emt 0:30:34]} 42. Nd4 {[%emt 0:00:00]} (42. Re3 $11) 42... Nh7 $17 {[%emt 0:00:00]} 43. Qh1 {[%emt 0:00:00] [#]} Qc7 {[%emt 0:00:00]} ({Black should play} 43... Qd7 $1 $17 {[%cal Oc5b3] ...Nxb3! is the strong threat.} 44. Bb2 Nb7) 44. Re3 $15 {[%emt 0:00:00]} Ng5 {[%emt 0:00:00][%cal Ob6b5]} 45. Qg2 {[%emt 0:00:00]} Rd8 {[%emt 0:00:00]} 46. Nc6 {[%emt 0:00:00]} (46. Qc6 $15 Qb8 47. Qg2) 46... Rd1 {[%emt 0:00:00][%cal Oc5e4] ...Nce4! would now be deadly.} 47. b4 $2 {[%emt 0:00:00] White does not recover from this.} (47. Qc2 $17 Rd7 48. Nd4) 47... Nce4 $19 {[%emt 0:00:00] A dynamic duo of knights.} 48. b5 {[%emt 0:00:00]} (48. Rxe4 Qxc6 49. Rf4) 48... Nxc3 {[%emt 0:00:00]} 49. Rxc3 {[%emt 0:00:00]} Qd7 {[%emt 0:00:00]} 50. Rc2 {[%emt 0:00:00] Against Rd2} axb5 {[%emt 0:00:00]} 51. cxb5 {[%emt 0:00:00]} Qd3 {[%emt 0:00:00][%csl LRa3,LRb5]} 52. Ne7+ {[%emt 0:00:00]} Kh7 {[%emt 0:00:00]} 53. Rf2 {[%emt 0:00:34] Against Nf3+} Ne4 {[%emt 0:01:53]} (53... Qxb5 $2 {is the wrong capture.} 54. Qa8 $18) 54. Rb2 {[%emt 0:03:50] [#]} Nxg3 $1 {[%emt 0:01:46][%mdl 512]} 55. Qa8 {[%emt 0:00:53]} (55. Qxg3 Rh1+) 55... Nf1+ {[%emt 0:00:23]} ({Worse is} 55... Nxh5 56. Qg8#) 56. Kg2 {[%emt 0:00:11]} Qg3+ {[%emt 0:00:11] Weighted Error Value: White=0.76/Black=0.20 (precise) .  Loses game:     	White=1     	---        Mistake:       	White=4     	Black=3      Inaccurate:     	White=7     	Black=1      OK:         	White=6     	Black=14     Best:        	White=1     	Black=1} 0-1

[Event "Danish Skakligaen 2024-25"]
[Site "Denmark"]
[Date "2024.11.02"]
[Round "1.3"]
[White "Schandorff, Lars"]
[Black "Abildlund, Jens"]
[Result "1/2-1/2"]
[ECO "D05"]
[WhiteElo "2471"]
[BlackElo "2181"]
[Annotator "TA"]
[PlyCount "140"]
[EventDate "2024.11.02"]
[EventType "team-tourn"]
[EventCountry "DEN"]
[SourceTitle "playchess.com"]
[Source "ChessBase"]
[SourceQuality "1"]
[TimeControl "40/5400+30:1800+30"]

{[%evp 48,140,136,130,293,320,310,292,365,339,642,632,650,636,857,628,646,650,891,305,320,318,298,304,313,322,287,149,495,154,166,126,130,133,120,107,112,89,86,84,87,87,101,88,85,0,0,0,33,30,30,30,80,80,107,0,0,0,0,0,0,0,0,0,0,0,0,0,0,0,0,0,0,0,0,0,0,0,0,0,0,0,0,0,0,0,0,0,0,0,0,0,0,0,0]} 1. d4 {[%emt 0:00:06]} d5 {[%emt 0:00:13]} 2. Nf3 {[%emt 0:00:35]} Nf6 {[%emt 0:00:08]} 3. e3 {[%emt 0:01:31]} e6 {[%emt 0:04:30]} 4. Bd3 {[%emt 0:02:00]} c5 {[%emt 0:00:40]} 5. c3 {[%emt 0:00:26]} Nc6 {[%emt 0:00:43]} 6. O-O {[%emt 0:01:11]} Bd6 {[%emt 0:00:40]} 7. Nbd2 {[%emt 0:00:31]} O-O {[%emt 0:00:29]} 8. dxc5 {[%emt 0:00:44]} Bxc5 {[%emt 0:00:08]} 9. b4 {[%emt 0:00:20]} Bd6 {[%emt 0:01:12]} 10. Bb2 {[%emt 0:00:41]} b6 {[%emt 0:06:25]} 11. a3 {[%emt 0:05:06]} Bb7 {[%emt 0:05:11]} 12. c4 {[%emt 0:01:23]} Rc8 {[%emt 0:03:43] D05: Colle System with ...e6.} 13. Qe2 {[%emt 0:06:54]} Qe7 {[%emt 0:01:45]} 14. Rfd1 {[%emt 0:01:35]} Rfd8 $146 {[%emt 0:00:50]} ({Predecessor:} 14... Nb8 15. Bxf6 Qxf6 16. cxd5 exd5 17. Nb3 Rfe8 18. Nbd4 Bf8 19. Bf5 Rcd8 20. Rac1 g6 {1-0 Utegaliev,A (2503)-Mezentsev,I (2351) Almaty op 2019 (3)}) 15. Rac1 {[%emt 0:01:41]} Bb8 {[%emt 0:03:37]} 16. cxd5 {[%emt 0:15:40]} Nxd5 {[%emt 0:10:34]} 17. Nb3 {[%emt 0:06:42]} f6 {[%emt 0:07:39]} 18. Ba6 {[%emt 0:20:16]} Qf7 {[%emt 0:06:06]} 19. g3 {[%emt 0:04:36]} Ne5 {[%emt 0:10:54]} 20. Bxb7 {[%emt 0:09:01]} Qxb7 {[%emt 0:00:12]} 21. e4 {[%emt 0:01:24]} Nxf3+ {[%emt 0:02:57]} 22. Qxf3 {[%emt 0:00:05]} Ne7 {[%emt 0:05:18]} 23. Qg4 {[%emt 0:00:23]} Kf7 {[%emt 0:04:14]} 24. Nd4 {[%emt 0:00:28]} Rd6 {[%emt 0:01:27]} 25. e5 {[%emt 0:01:31]} Rxc1 $2 {[%emt 0:01:57]} (25... fxe5 $16 26. Nf3 (26. Nxe6 $2 Rxe6 27. Qh5+ Kg8 $19) 26... Nf5 27. Bxe5 (27. Nxe5+ Kf8 $18) 27... Rxd1+ 28. Rxd1 Kg8 29. Bxb8 Rxb8) 26. Rxc1 $18 {[%emt 0:00:16]} fxe5 {[%emt 0:01:55]} 27. Nf3 {[%emt 0:00:25]} Rc6 {[%emt 0:09:43]} 28. Re1 {[%emt 0:01:20]} (28. Nxe5+ Bxe5 29. Rxc6 Qxc6 $11 (29... Nxc6 30. Qh5+ Kf8 31. Bxe5 $11)) 28... Nf5 $2 {[%emt 0:01:40]} (28... Ng6 29. b5 (29. Nxe5+ Bxe5 30. Bxe5 Nxe5 $11) 29... Rc2 30. Ng5+ (30. Bxe5 Bxe5 31. Nxe5+ Nxe5 $14) (30. Nxe5+ Bxe5 31. Bxe5 Qd5 $11) 30... Ke8 31. Qxe6+ (31. Nxh7 Qf7 $11) 31... Qe7) 29. Qh5+ $18 {[%emt 0:06:56]} (29. Nxe5+ Bxe5 30. Bxe5 Qc8 $16) 29... Kf8 {[%emt 0:00:39]} 30. Qxh7 {[%emt 0:01:12]} (30. Nxe5 Bxe5 31. Bxe5 h6 $16) 30... Rc2 {[%emt 0:00:39]} 31. Qh8+ {[%emt 0:01:48]} (31. Bxe5 Qxf3 32. Bxg7+ Ke8 33. Qg8+ Kd7 34. Qxe6+ Kc7 35. Qf7+ Kc6 $17) (31. Nxe5 Rxb2 32. Ng6+ Kf7 33. Nh8+ Kf8 34. Ng6+ Kf7 35. Nh8+ Kf8 36. Ng6+ $11) 31... Ke7 {[%emt 0:00:31]} 32. Nh4 {[%emt 0:00:22]} (32. Bxe5 $2 Qxf3 $19) (32. Nxe5 Rxb2 33. Ng6+ Kf6 $11) 32... Kf6 {[%emt 0:01:24]} 33. Qd8+ $2 {[%emt 0:03:48]} (33. Qf8+ Kg5 34. Qd8+ (34. Bxe5 $2 Rc8 $19) 34... Kh6 35. Qh8+ (35. Bxe5 Kh7 $18) 35... Kg5 36. Bxe5 (36. Bc1+ Rxc1 37. Rxc1 Bd6 $18) 36... Bxe5 37. Qe8 (37. Nxf5 Qf3 $11) (37. Qh7 Nxh4 38. gxh4+ Kf6 $18)) 33... Kf7 $18 {[%emt 0:00:29] [#]} 34. Rd1 $1 {[%emt 0:00:30]} (34. Bxe5 $2 {perishes.} Bxe5 35. Nxf5 exf5 $19) 34... Nd4 {[%emt 0:01:29]} 35. Bxd4 {[%emt 0:00:23]} exd4 {[%emt 0:00:07]} 36. Qxd4 {[%emt 0:00:25]} ({Less strong is} 36. Rxd4 Rc1+ 37. Rd1 Rxd1+ 38. Qxd1 Qd5 $16) 36... Qc6 {[%emt 0:02:54]} 37. Qd3 {[%emt 0:04:01]} (37. b5 $18 Qc8 38. Nf3) 37... Be5 $2 {[%emt 0:02:23][%mdl 8192]} (37... Rc1 $16 {is more resistant.} 38. Rxc1 Qxc1+ 39. Kg2 Qc6+ 40. Nf3 a5) 38. Nf3 $2 {[%emt 0:01:17]} (38. Qg6+ $18 Ke7 39. Nf3 Qxf3 40. Qxc2) 38... Bf6 $16 {[%emt 0:00:14]} 39. Kg2 {[%emt 0:01:06]} Rc3 {[%emt 0:00:16]} 40. Qd7+ {[%emt 0:00:08]} Kg6 {[%emt 0:00:28]} 41. Qxc6 {[%emt 0:30:45]} Rxc6 {[%emt 0:30:07]} 42. Rd3 {[%emt 0:00:00]} a5 {[%emt 0:00:00]} 43. bxa5 {[%emt 0:00:00]} bxa5 {[%emt 0:00:00]} 44. Nd2 {[%emt 0:00:00]} a4 {[%emt 0:00:00]} 45. Kf3 {[%emt 0:00:00]} Bb2 {[%emt 0:00:00]} 46. Ke4 {[%emt 0:00:00]} (46. Nf1 $16) 46... Rc2 $11 {[%emt 0:00:00]} 47. f4 {[%emt 0:00:00]} Bxa3 {[%emt 0:00:00]} 48. Rxa3 {[%emt 0:00:00]} Rxd2 {[%emt 0:00:00]} 49. h4 {[%emt 0:00:00]} Kh5 {[%emt 0:00:00]} (49... Rc2 $11 {remains equal.}) 50. Rxa4 $16 {[%emt 0:00:00]} Kg4 {[%emt 0:00:00]} 51. Ra7 {[%emt 0:00:00]} (51. f5 $1 $16 {Intending Ke3+ and mate.} e5 52. Kxe5+ (52. f6 gxf6 53. Ke3+ Rd4 $11) 52... Kxg3 53. Ke6) 51... Kxg3 $11 {[%emt 0:00:00]} 52. Rxg7+ {[%emt 0:00:00]} Kxh4 {[%emt 0:00:00]} 53. Rg6 {[%emt 0:00:00]} Rd6 {[%emt 0:00:00]} 54. Ke5 {[%emt 0:00:00]} Ra6 {[%emt 0:00:00]} 55. Rxe6 {[%emt 0:00:00]} Ra5+ {[%emt 0:00:00]} 56. Ke4 {[%emt 0:00:00]} Ra4+ {[%emt 0:00:00]} 57. Kf5 {[%emt 0:00:00]} Ra5+ {[%emt 0:00:00]} 58. Re5 {[%emt 0:00:00]} Ra6 {[%emt 0:00:00]} 59. Rd5 {[%emt 0:00:00]} Rb6 {[%emt 0:00:00]} 60. Ke4 {[%emt 0:03:23]} Rb4+ {[%emt 0:00:00]} 61. Kf5 {[%emt 0:00:59]} Rb6 {[%emt 0:00:00]} 62. Re5 {[%emt 0:02:12]} Ra6 {[%emt 0:00:00]} 63. Re6 {[%emt 0:00:10]} Ra5+ {[%emt 0:00:00]} 64. Kg6 {[%emt 0:00:11]} Kg4 {[%emt 0:00:00]} 65. Rf6 {[%emt 0:00:12]} Ra8 $1 {[%emt 0:00:00]} 66. f5 {[%emt 0:01:44]} Rg8+ $1 {[%emt 0:00:00]} 67. Kh6 {[%emt 0:00:11]} Kf4 {[%emt 0:00:00]} 68. Rf7 {[%emt 0:00:57]} Ke5 {[%emt 0:00:00]} 69. f6 {[%emt 0:00:58]} Kf5 {[%emt 0:00:00]} 70. Kh7 {[%emt 0:00:33]} Rg6 {[%emt 0:00:00]} 1/2-1/2

[Event "Danish Skakligaen 2024-25"]
[Site "Denmark"]
[Date "2024.11.02"]
[Round "1.3"]
[White "Pajeken, Jakob Leon"]
[Black "Smith, Axel"]
[Result "1-0"]
[ECO "B27"]
[WhiteElo "2417"]
[BlackElo "2433"]
[Annotator "TA"]
[PlyCount "99"]
[EventDate "2024.11.02"]
[EventType "team-tourn"]
[EventCountry "DEN"]
[SourceTitle "playchess.com"]
[Source "ChessBase"]
[SourceQuality "1"]
[TimeControl "40/5400+30:1800+30"]

{[%evp 9,99,11,2,12,20,20,25,34,35,22,57,57,85,78,72,68,72,74,79,64,62,66,107,53,76,90,88,95,69,83,84,85,121,129,125,121,129,130,125,116,166,127,708,676,787,164,253,220,232,182,175,186,165,145,146,141,403,396,572,572,579,589,755,767,777,783,767,729,800,762,812,804,1847,1854,1393,1221,1806,1819,1729,1667,1221,1243,29982,29983,29983,29984,29984,29985,29985,29986,29990,29991]} 1. e4 {[%emt 0:00:09]} c5 {[%emt 0:00:03]} 2. Nf3 {[%emt 0:00:06]} g6 {[%emt 0:00:02]} 3. c3 {[%emt 0:01:13]} d5 {[%emt 0:00:06]} 4. e5 {[%emt 0:00:18]} Nc6 {[%emt 0:00:07]} 5. Bb5 {[%emt 0:01:08]} Bg4 {[%emt 0:05:38]} 6. O-O {[%emt 0:01:49]} Qb6 {[%emt 0:03:21]} 7. Bxc6+ {[%emt 0:01:26]} bxc6 {[%emt 0:06:00]} 8. d3 {[%emt 0:01:53] White has an edge.} Bg7 {[%emt 0:04:44]} 9. Re1 {[%emt 0:00:33]} Nh6 {[%emt 0:23:09][%cal Bg8h6,Bh6f7,Bf7e5,Be5d3][%mdl 32]} 10. Nbd2 {[%emt 0:05:00]} O-O {[%emt 0:02:44]} 11. h3 {[%emt 0:02:13]} Bxf3 {[%emt 0:00:42]} 12. Nxf3 {[%emt 0:00:14]} f6 {[%emt 0:03:05]} 13. Qc2 {[%emt 0:25:52]} Nf7 {[%emt 0:08:01]} 14. exf6 {[%emt 0:05:59]} exf6 {[%emt 0:02:28]} 15. Be3 {[%emt 0:03:17][%cal Ob2b4]} Ne5 {[%emt 0:00:55]} 16. Nd2 {[%emt 0:06:57]} (16. b4 $16 {Nxe5 would now be deadly.} Nxf3+ 17. gxf3) 16... Qa6 {[%emt 0:15:07] [#]} 17. c4 $1 {[%emt 0:06:08]} Rfd8 {[%emt 0:00:31][%cal Bf8d8,Bd8d5,Bd5c5][%mdl 32]} 18. Bxc5 {[%emt 0:12:34]} dxc4 {[%emt 0:00:36]} 19. d4 {[%emt 0:01:19]} (19. dxc4 Nd3 20. b4 Nxe1 21. Rxe1 f5 $16) 19... Nd3 {[%emt 0:00:33]} 20. Re6 {[%emt 0:02:13]} (20. Qxc4+ Qxc4 21. Nxc4 Nxe1 22. Rxe1 f5 $15) (20. Re7 {feels hotter.} Bf8 21. Re6 Kf7 22. Nxc4 Nxc5 23. dxc5 Rd4 24. Re4) 20... Rd5 {[%emt 0:05:47]} 21. Nxc4 {[%emt 0:01:27]} Nxc5 {[%emt 0:00:22]} 22. dxc5 {[%emt 0:00:13]} Rxc5 {[%emt 0:01:01]} 23. b3 {[%emt 0:00:32] White is more active.} Rd8 {[%emt 0:05:58]} 24. Rae1 {[%emt 0:01:19] aiming for Re8+.} Qc8 {[%emt 0:00:20]} (24... Rcd5 $16 25. g3 f5) 25. Re7 {[%emt 0:01:48]} a5 $2 {[%emt 0:01:20][%mdl 8192]} (25... Bf8 $16) 26. Qe2 $18 {[%emt 0:03:28][%cal Oc4d6] Threatens to win with Nd6!} Bf8 {[%emt 0:01:41]} 27. Ra7 {[%emt 0:01:06]} (27. Nb6 Qf5 28. g4) 27... Qf5 {[%emt 0:01:41]} (27... Rb5 $142) 28. g4 {[%emt 0:02:28]} Qd5 {[%emt 0:02:19]} 29. Qe6+ {[%emt 0:00:35]} Qxe6 {[%emt 0:00:27]} 30. Rxe6 {[%emt 0:00:05]} f5 {[%emt 0:01:36]} 31. Kg2 {[%emt 0:03:30]} ({Resist} 31. Rxa5 $6 Rxa5 32. Nxa5 fxg4 $14) (31. Nxa5 Rc2 32. Nxc6 Rd1+ 33. Kg2 Rdd2 $11) 31... fxg4 {[%emt 0:01:05]} 32. hxg4 {[%emt 0:00:16]} (32. Rxa5 gxh3+ 33. Kxh3 Rxa5 34. Nxa5 Rd2 $15) 32... Rg5 $2 {[%emt 0:02:06][%mdl 8192] This move loses the game for Black.} (32... Rcd5 $16 33. Rxc6 (33. Nxa5 Bc5 $14) 33... Re8) 33. Ne5 $1 {[%emt 0:01:20]} ({Not} 33. Rxa5 Rxg4+ 34. Kf3 Rg1 $11) 33... Bc5 {[%emt 0:02:14]} (33... Rd6 {is a better defense.} 34. Rxd6 (34. Re8 Rf6 $18) 34... Bxd6) 34. Rxa5 {[%emt 0:00:54]} Bb6 {[%emt 0:01:05]} 35. Ra6 {[%emt 0:00:56]} Bc7 {[%emt 0:00:31]} 36. f4 {[%emt 0:00:23]} Bxe5 {[%emt 0:00:25]} 37. fxg5 {[%emt 0:00:19][%mdl 4096] Endgame. KRR-KRB} Bf4 {[%emt 0:00:15]} 38. Ra5 {[%emt 0:01:58]} Bc7 {[%emt 0:00:48]} 39. Ra4 {[%emt 0:01:34]} Rd2+ {[%emt 0:00:24]} 40. Kf3 {[%emt 0:00:28]} Bd8 {[%emt 0:00:33]} 41. Ra7 {[%emt 0:31:42]} Kf8 {[%emt 0:03:01] Against Re8+} 42. Rxc6 {[%emt 0:00:00]} Bxg5 {[%emt 0:00:30]} 43. Rc8+ {[%emt 0:00:00]} Bd8 {[%emt 0:00:10]} 44. Raa8 {[%emt 0:00:00]} Ke7 {[%emt 0:00:06] [#]} 45. Rxd8 $1 {[%emt 0:00:00]} Rxd8 {[%emt 0:00:02]} (45... Rh2 46. g5) 46. Rxd8 {[%emt 0:00:00] White mates.} Kxd8 {[%emt 0:00:03]} 47. g5 {[%emt 0:00:00][%cal Bg4g5,Bg5h6][%mdl 32]} Ke7 {[%emt 0:00:33]} 48. a4 {[%emt 0:00:00][%cal Ba2a4,Ba4a5][%mdl 32]} Kd6 {[%emt 0:01:10]} 49. a5 {[%emt 0:00:00]} h5 {[%emt 0:00:05]} 50. gxh6 {[%emt 0:00:00] Weighted Error Value: White=0.31/Black=0.35.  Loses game:     	---       	Black=2      Mistake:       	White=1     	Black=2      Inaccurate:     	---       	Black=4      OK:         	White=15    	Black=11     Best:        	White=2     	Black=1      Strong:       	White=2     	---} 1-0

[Event "Danish Skakligaen 2024-25"]
[Site "Denmark"]
[Date "2024.11.02"]
[Round "1.3"]
[White "Haubro, Martin"]
[Black "Hald Falkesgaard, Jeppe"]
[Result "1-0"]
[ECO "B30"]
[WhiteElo "2375"]
[BlackElo "2266"]
[Annotator "RC"]
[PlyCount "81"]
[EventDate "2024.11.02"]
[EventType "team-tourn"]
[EventCountry "DEN"]
[SourceTitle "playchess.com"]
[Source "ChessBase"]
[SourceQuality "1"]
[TimeControl "40/5400+30:1800+30"]

1. e4 {[%emt 0:00:02]} c5 {[%emt 0:00:05]} 2. Nf3 {[%emt 0:00:04]} Nc6 {[%emt 0:00:04]} 3. Bb5 {[%emt 0:00:05]} Nf6 {[%emt 0:01:10]} 4. d3 {[%emt 0:00:13]} g6 {[%emt 0:01:22]} 5. Bxc6 {[%emt 0:00:33]} dxc6 {[%emt 0:02:22]} 6. h3 {[%emt 0:00:06]} Bg7 {[%emt 0:00:27]} 7. O-O {[%emt 0:02:18]} O-O {[%emt 0:00:52]} 8. Nc3 {[%emt 0:05:48]} e5 {[%emt 0:11:55]} 9. Nxe5 {[%emt 0:18:24]} Nxe4 {[%emt 0:00:22]} 10. Nxe4 {[%emt 0:00:05]} Bxe5 {[%emt 0:00:06]} 11. Nxc5 {[%emt 0:05:53]} b6 {[%emt 0:02:20]} 12. Re1 {[%emt 0:14:38]} Bg7 {[%emt 0:05:32]} 13. Ne4 {[%emt 0:01:16]} Bb7 {[%emt 0:11:43]} 14. Bg5 {[%emt 0:03:50]} f6 {[%emt 0:05:47]} 15. Bf4 {[%emt 0:00:05]} c5 {[%emt 0:01:47]} 16. Nd6 {[%emt 0:00:44]} Bd5 {[%emt 0:01:09]} 17. c4 {[%emt 0:09:01]} Bc6 {[%emt 0:09:11]} 18. d4 {[%emt 0:01:43]} cxd4 {[%emt 0:08:22]} 19. Qxd4 {[%emt 0:00:05]} Qd7 {[%emt 0:01:07]} 20. c5 {[%emt 0:01:20]} Rad8 {[%emt 0:04:48]} 21. Rad1 {[%emt 0:04:10]} b5 {[%emt 0:04:54]} 22. Qe3 {[%emt 0:01:07]} h5 {[%emt 0:07:52]} 23. Qb3+ {[%emt 0:03:55]} Kh7 {[%emt 0:00:16]} 24. Re6 {[%emt 0:06:09]} a5 {[%emt 0:02:25]} 25. Rde1 {[%emt 0:00:05]} Qa7 {[%emt 0:01:10]} 26. Qc3 {[%emt 0:06:00]} Rd7 {[%emt 0:02:00]} 27. Ne8 {[%emt 0:03:30]} Bd5 {[%emt 0:07:26]} 28. Nxf6+ {[%emt 0:02:35]} Rxf6 {[%emt 0:01:14]} 29. Rxf6 {[%emt 0:00:06]} b4 {[%emt 0:01:16]} 30. Qe5 {[%emt 0:01:56]} Qxc5 {[%emt 0:03:52]} 31. Qg5 {[%emt 0:00:06]} Qc2 {[%emt 0:02:01]} 32. Rd6 {[%emt 0:01:47]} Rxd6 {[%emt 0:00:37]} 33. Bxd6 {[%emt 0:00:05]} Qc6 {[%emt 0:00:22]} 34. Be5 {[%emt 0:00:17]} Qe6 {[%emt 0:00:45]} 35. b3 {[%emt 0:00:13]} a4 {[%emt 0:00:32]} 36. Bc3 {[%emt 0:01:30]} Qd6 {[%emt 0:00:38]} 37. Bxg7 {[%emt 0:00:10]} Kxg7 {[%emt 0:00:17]} 38. Qe5+ {[%emt 0:00:37]} Qxe5 {[%emt 0:00:23]} 39. Rxe5 axb3 {[%emt 0:00:10]} 40. axb3 {[%emt 0:00:13]} Bxb3 {[%emt 0:00:06]} 41. Rb5 {[%emt 0:30:04]} 1-0